{"text_format":"2","workbook":"xlsx","n_sheets":1,"sheets":["Munka1"],"not_rendered":{"charts":0,"images":0,"macros":0,"external_links":0,"defined_names":0,"comments":0,"pivot_tables":0},"unopened":[],"bounds":{"document_bytes":16777216,"sheet_cells":100000,"run_cost":"one","rows_first":2000,"rows_last":500,"rows_between":2000,"halvings":0,"cell_chars":16384,"cell_head_chars":4096},"cells_cut":0,"cells_raw":0,"read":"whole","date_system":"1900"}

{"sheet":"Munka1","index":0,"n_rows":76,"n_cols":8,"rows_kept":76,"cut":false,"hidden":false,"merged":[[75,3,75,5],[10,1,10,5],[65,1,65,3],[0,1,0,6],[73,3,73,5],[74,3,74,5],[63,1,63,5],[12,1,12,7],[2,1,2,7],[28,1,28,7],[54,1,54,7],[26,1,26,5],[42,1,42,5],[44,1,44,7],[51,1,51,5]]}
[null,"SZTE Balatonboglár Kodály utcai üdülő munkái"]
[]
[null,"Napozóstég építése "]
[]
[null,"munka megnevezése","mennyiség ","Egység","Anyag    egységár","Díj           egységre","Anyag     összesen","Díj            összesen"]
["1.","Meglévő stég elszállítása hulladéklerakóhelyre",1,"Klt*",0,0,0,0]
["2.","Komplett napozóstég tartószerkezet gyártása a jelenlegivel megegyező méretben és kialakításban. Horganyzott acél szerkezetből, összecsavarozható modul elemekből. Lejáró lépcsőkkel, görgős csónak leeresztővel, csónak leeresztőhöz tartozó lépcsővel, korláttal.",1,"Klt*",0,0,0,0]
["3.","Stég fa járószerkezetének legyártása és fém elemekre történő rögzítése, gyalult- csiszolt, élfózolt borovifenyő pallókból. ",1,"Klt*",0,0,0,0]
["4.","Fa járószerkezet impregnáló beeresztő alapozása + 2 rtg. Lazúr mázolása ",300,"m2",0,0,0,0]
["5.","Új stég telepítése, összeszerelése a rendeltetési helyén",1,"Klt*",0,0,0,0]
[null,"Munkanem összesen:",{"$nulls":4},{"$f":"SUM(G6:G10)","v":0},{"$f":"SUM(H6:H10)","v":0}]
[]
[null,"Féltető építése a főépület mellé"]
[]
[null,"munka megnevezése","mennyiség ","Egység","Anyag    egységár","Díj           egységre","Anyag     összesen","Díj            összesen"]
["1.","Fejtett föld, bontási hulladék elszállítása lerakóhelyre",1.1000000000000001,"m3",0,0,{"$f":"(C16*E16)","v":0},{"$f":"(C16*F16)","v":0}]
["2.","Alapgödör ásása tartóoszlopok helyén",0.9,"m3",0,0,{"$f":"(C17*E17)","v":0},{"$f":"(C17*F17)","v":0}]
["3.","Térbeton bontása alapgödrök helyén",0.2,"m3",0,0,0,0]
["4.","Alapgödör betonozása ",0.9,"m3",0,0,0,0]
["5.","Acél előregyártott kehely fogadószerkezet elhelyezése oszlopok alá betonozáskor ",12,"db",0,0,0,0]
["6.","Fa szerkezetű, oszlopokon álló féltetős tároló készítése gyalult, csiszolt, él fózolt, gombamentesített faanyagból",45,"m2",0,0,0,0]
["7.","Szarufák tetején OSB lap terítés készítése lécezéssel",45,"m2",0,0,0,0]
["8.","Szarufák közének lambéria burkolása",45,"m2",0,0,0,0]
["9.","Bitumenes zsindely fedés készítése ",45,"m2",0,0,0,0]
["10.","Bádogozási munkák, falszegély, ereszszegély, esőcsatorna elhelyezése horganyzott acél szerkezettel",15,"m2",0,0,0,0]
["11.","Fa szerkezet lazúr mázolása kültéri lazúrral 3 rtg.-ben",100,"m2",0,0,0,0]
[null,"Munkanem összesen:",{"$nulls":4},{"$f":"SUM(G16:G26)","v":0},{"$f":"SUM(H16:H26)","v":0}]
[]
[null,"Úszókapu készítése a Kodály utcai telek bejáratához"]
[]
[null,"munka megnevezése","mennyiség ","Egység","Anyag    egységár","Díj           egységre","Anyag     összesen","Díj            összesen"]
["1.","Meglévő kapu bontása tartóoszlopokkal részleges kerítés bontással",1,"db",0,0,{"$f":"(C32*E32)","v":0},{"$f":"(C32*F32)","v":0}]
["2.","Bontott anyag, fejtett föld elszállítása",2.1,"m3",0,0,{"$f":"(C33*E33)","v":0},{"$f":"(C33*F33)","v":0}]
["3.","Alapködör ásása tartóoszlopok helyén",1.5,"m3",0,0,0,0]
["4.","Alapárok ásása kapu vonalában teljes nyíló hosszban térbeton bontással",0.6,"m3",0,0,0,0]
["5.","Kapu tartóoszlopok elhelyezése betonozással",1.5,"m3",0,0,0,0]
["6.","Alapárok kibetonozása kapu vonalában teljes nyíló hosszban, betonvas elhelyezésével.",0.6,"m3",0,0,0,0]
["7.","Komplett úszókapu gyártása és helyszíni elhelyezése teljes felületképzéssel belátás elleni fémbetéttel RAL 7016 Antracit színben. A későbbi motoros mozgatáshoz történő teljes előkészítéssel. Mechanikus zárszerkezettel",1,"klt*",0,0,0,0]
["8.","Védőcsövek elhelyezése a későbbi motoros mozgatás kábelezéséhez. (mozgásérzékelők, antenna, fényjelző, mozgató motor)",1,"klt*",0,0,0,0]
["9.","Meglévő megmaradó kerítés új kapuhoz történő hozzázárása",1,"klt*",0,0,0,0]
["10.","Kapuoszlopra kandelláber tartó elhelyezése ",1,"klt*",0,0,{"$f":"(C41*E41)","v":0},{"$f":"(C41*F41)","v":0}]
["11.","kandelláber le és felszerelése új tartóra vezeték átépítéssel",1,"klt*",0,0,0,0]
[null,"Munkanem összesen:",{"$nulls":4},{"$f":"SUM(G32:G40)","v":0},{"$f":"SUM(H32:H40)","v":0}]
[]
[null,"Bejáróút építés kőzuzalékból"]
[null,"munka megnevezése","mennyiség ","Egység","Anyag    egységár","Díj           egységre","Anyag     összesen","Díj            összesen"]
["1.","Fejtett föld elszállítása lerakóhelyre",45,"m3",0,0,{"$f":"(C47*E47)","v":0},{"$f":"(C47*F47)","v":0}]
["2.","Földtükör készítése, gépi erővel kiegészítő kézi munkával mészkő ágyazat helyén, 25 cm vtg.-ban. ",45,"m3",0,0,{"$f":"(C48*E48)","v":0},{"$f":"(C48*F48)","v":0}]
["3.","\"K\" szegély rakása földnedves betonba cementhabarcs hézagolással ",36,"fm",0,0,{"$f":"(C49*E49)","v":0},{"$f":"(C49*F49)","v":0}]
["4.","Tömörített mészkőágyazat készítése átlag 15 cm vtg.-ban",180,"m2",0,0,{"$f":"(C50*E50)","v":0},{"$f":"(C50*F50)","v":0}]
["5.","5/12-es frakciójú mészkőzuzalék terítése tömörítéssel, átlag 3 cm vtg.-ban",180,"m2",0,0,{"$f":"(C51*E51)","v":0},{"$f":"(C51*F51)","v":0}]
[null,"Munkanem összesen:",{"$nulls":4},{"$f":"SUM(G47:G51)","v":0},{"$f":"SUM(H47:H51)","v":0}]
[]
[]
[null,"Kerti tárgyak felújítása a Kodály utcai telken 2 db hinta 10 db fém asztal "]
[]
[null,"munka megnevezése","mennyiség ","Egység","Anyag    egységár","Díj           egységre","Anyag     összesen","Díj            összesen"]
["1.","Festékeltávolítás",1,"klt*",0,0,{"$f":"(C58*E58)","v":0},{"$f":"(C58*F58)","v":0}]
["2.","Kézi rozsdamentesítés",1,"klt*",0,0,{"$f":"(C59*E59)","v":0},{"$f":"(C59*F59)","v":0}]
["3.","Korrózióvédő alapozás",1,"klt*",0,0,0,0]
["4.","Alapmázolás",1,"klt*",0,0,0,0]
["5.","Fedőmázolás",1,"klt*",0,0,0,0]
["6.","Zománclakkozás",1,"klt*",0,0,0,0]
[null,"Munkanem összesen:",{"$nulls":4},{"$f":"SUM(G58:G63)","v":0},{"$f":"SUM(H58:H63)","v":0}]
[]
[null,"Összesítő"]
[{"$nulls":6},"Anyag     összesen","Díj            összesen"]
["1.","Napozóstég építése ",{"$nulls":4},{"$f":"G11","v":0},{"$f":"H11","v":0}]
["2.","Féltető építése a főépület mellé",{"$nulls":4},{"$f":"G27","v":0},{"$f":"H27","v":0}]
["3.","Úszókapu készítése a Kodály utcai telek bejáratához",{"$nulls":4},{"$f":"G43","v":0},{"$f":"H43","v":0}]
["4.","Bejáróút építés kőzuzalékból",{"$nulls":4},{"$f":"G52","v":0},{"$f":"H52","v":0}]
["5.","Kerti tárgyak felújítása a Kodály utcai telken 2 db hinta 10 db fém asztal ",{"$nulls":4},{"$f":"G64","v":0},{"$f":"H64","v":0}]
[{"$nulls":6},{"$f":"SUM(G68:G72)","v":0},{"$f":"SUM(H68:H72)","v":0}]
[null,null,null,"Anyag + díj netto :",null,null,null,{"$f":"(G73+H73)","v":0}]
[null,null,null,"ÁFA 27% :",null,null,null,{"$f":"(H74*0.27)","v":0}]
[null,null,null,"Bruttó :",null,null,null,{"$f":"(H74+H75)","v":0}]